bitfinex-derivatives/quotes_ETHF0:USTF0_20210109
["timestamp","ask_amount","ask_price","bid_price","bid_amount"]
[1610209979626,4.00959,1211.3,1211.1,51.2589349]
[1610209979828,4.00959,1211.3,1211.2,50.0]
[1610209981128,4.00959,1211.3,1211.0,52.0078]
[1610209981527,34.00959,1211.3,1211.1,50.0]
[1610209981929,34.00959,1211.3,1210.9,50.0]
[1610209982131,35.85499,1211.3,1210.9,50.0]
[1610209982328,35.85499,1211.3,1211.0,50.0]
[1610209982728,35.85499,1211.3,1210.7,50.0]
[1610209983130,35.85499,1211.3,1210.8,50.0]
[1610209983531,35.85499,1211.3,1210.5,50.0]
[1610209983731,4.00959,1210.7,1210.1,4.00959]
[1610209983930,4.00959,1210.7,1210.6,50.0]
[1610209985029,4.00959,1210.7,1210.6,51.25921539]
[1610209985830,2.0629,1211.7,1210.6,51.25921539]
[1610209986230,2.0629,1211.7,1210.7,50.0]
[1610209986631,2.0629,1211.7,1210.8,50.0]
[1610209986831,30.0,1211.9,1210.8,50.0]
[1610209987031,30.0,1211.9,1210.7,50.0]
[1610209987434,30.0,1211.9,1210.9,50.0]
[1610209987632,4.00959,1211.4,1211.0,4.00959]
[1610209988033,4.00959,1211.4,1211.0,54.00959]
[1610209988632,4.00959,1211.4,1211.1,50.0]
[1610209988832,31.6344,1212.3,1211.1,50.0]
[1610209989034,37.877,1212.3,1211.2,50.0]
[1610209989232,37.877,1212.3,1211.2,52.2749]
[1610209989433,37.877,1212.3,1211.2,2.2749]
[1610209989632,4.00959,1211.9,1211.3,4.00959]
[1610209989833,4.00959,1211.9,1211.3,54.00959]
[1610209990236,4.00959,1211.9,1211.4,50.0]
[1610209990636,4.00959,1211.9,1211.5,50.0]
[1610209990837,4.00959,1211.9,1211.5,51.7104]
[1610209991038,4.00959,1211.9,1211.6,50.0]
[1610209991638,30.0,1212.6,1211.7,50.0]
[1610209992239,6.0473,1212.7,1211.7,116.4598]
[1610209992439,6.0473,1212.7,1211.8,50.0]
[1610209992640,6.0473,1212.7,1211.8,52.5855]
[1610209992841,6.0473,1212.7,1211.9,50.0]
[1610209993740,6.0473,1212.7,1212.0,54.00959]
[1610209994142,30.0,1213.0,1212.0,4.00959]
[1610209994542,105.24860129,1213.1,1212.0,4.00959]
[1610209994741,105.24860129,1213.1,1212.1,50.0]
[1610209994941,105.29286775,1213.2,1212.1,58.4626]
[1610209995141,105.29286775,1213.2,1212.1,61.0286]
[1610209995344,135.29286775,1213.2,1212.2,50.0]
[1610209995744,4.00959,1212.3,1212.1,8.4626]
[1610209996142,4.00959,1212.3,1212.2,50.0]
[1610209996644,4.00959,1212.3,1212.1,8.4626]
[1610209997043,4.00959,1212.3,1212.2,50.0]
[1610209999145,4.00959,1212.3,1212.1,50.0]
[1610209999544,4.00959,1212.3,1212.0,50.0]
[1610209999744,4.00959,1212.3,1211.9,68.20569]
[1610209999944,4.00959,1212.3,1212.2,50.0]
[1610210000344,4.00959,1212.3,1212.0,50.0]
[1610210000545,4.00959,1212.3,1212.1,1.638]
[1610210000745,4.00959,1212.3,1212.2,50.0]
[1610210001647,4.00959,1212.3,1212.2,54.00959]
[1610210002147,4.00959,1212.3,1212.2,50.0]
[1610210003048,34.00959,1212.3,1212.2,50.0]
[1610210003448,34.00959,1212.3,1212.0,50.0]
[1610210003648,4.00959,1212.1,1212.0,50.0]
[1610210004048,4.00959,1212.1,1211.6,50.0]
[1610210004250,34.00959,1212.1,1211.6,50.0]
[1610210004449,4.00959,1212.1,1211.7,50.0]
[1610210004650,15.43468574,1211.8,1211.7,50.0]
[1610210004849,105.52092272,1211.8,1211.5,50.0]
[1610210005049,4.00959,1212.1,1211.5,50.0]
[1610210005249,4.00959,1212.1,1211.5,51.6538]
[1610210005449,4.00959,1212.1,1211.7,50.0]
[1610210005849,4.00959,1211.9,1211.8,50.0]
[1610210006349,4.00959,1211.9,1211.6,50.0]
[1610210006749,4.00959,1211.9,1211.8,50.0]
[1610210007151,4.00959,1211.9,1211.6,50.0]
[1610210007352,4.00959,1211.9,1211.5,1.6538]
[1610210007551,4.00959,1211.9,1211.8,50.0]
[1610210007951,4.00959,1211.9,1211.7,50.0]
[1610210008152,4.00959,1211.9,1211.6,1.2583822]
[1610210008351,4.00959,1211.9,1211.8,50.0]
[1610210008551,34.00959,1211.9,1211.8,50.0]
[1610210008751,34.00959,1211.9,1211.6,51.2583822]
[1610210009151,34.00959,1211.9,1211.6,1.2583822]
[1610210009553,34.00959,1211.9,1211.4,61.426]
[1610210009754,4.00959,1211.5,1211.4,61.426]
[1610210009954,4.00959,1211.5,1211.2,50.0]
[1610210010154,34.00959,1211.5,1211.2,50.0]
[1610210010553,34.00959,1211.5,1211.3,50.0]
[1610210010754,4.00959,1211.5,1211.0,63.0491]
[1610210010956,4.00959,1211.5,1211.4,50.0]
[1610210011353,4.00959,1211.5,1211.1,50.0]
[1610210011856,4.00959,1211.2,1210.9,2.4585]
[1610210012256,4.00959,1211.2,1211.1,50.0]
[1610210012455,4.00959,1211.2,1211.0,50.0]
[1610210012656,4.00959,1211.2,1210.9,2.4585]
[1610210012859,4.00959,1211.2,1211.1,50.0]
[1610210013560,4.00959,1211.2,1210.9,2.4585]
[1610210013761,4.00959,1211.4,1211.1,5.2682507]
[1610210013960,4.00959,1211.4,1211.1,55.2682507]
[1610210014160,4.00959,1211.4,1211.1,5.2682507]
[1610210014561,4.00959,1211.4,1211.2,50.0]
[1610210014760,4.00959,1211.4,1211.2,52.1624]
[1610210014961,4.00959,1211.4,1211.3,50.0]
[1610210015765,2.5485,1212.0,1211.3,54.00959]
[1610210015966,57.0,1212.3,1211.3,54.00959]
[1610210015967,27.0,1212.3,1211.3,63.55979]
[1610210016365,27.0,1212.3,1211.4,50.0]
[1610210016566,57.0,1212.3,1211.4,50.0]
[1610210016966,57.0,1212.3,1211.5,50.0]
[1610210017365,57.0,1212.3,1211.4,50.0]
[1610210017566,29.5383,1212.3,1211.4,50.0]
[1610210017768,29.5383,1212.3,1211.6,1.25856443]
[1610210017967,59.5383,1212.3,1211.6,1.25856443]
[1610210018167,59.5383,1212.3,1211.8,54.8903]
[1610210018868,29.5383,1212.3,1211.8,54.8903]
[1610210019068,29.5383,1212.3,1211.9,50.0]
[1610210019468,59.5383,1212.3,1211.9,50.0]
[1610210019868,4.00959,1212.0,1211.9,50.0]
[1610210020671,4.00959,1212.0,1211.8,50.0]
[1610210022276,4.00959,1212.0,1211.9,51.8485]
[1610210023674,4.00959,1212.0,1211.9,53.10680157]
[1610210024276,4.00959,1212.0,1211.9,103.10680157]
[1610210025677,27.0,1212.3,1211.9,103.10680157]
[1610210025877,27.0,1212.3,1212.2,4.00959]
[1610210026081,27.0,1212.3,1212.2,6.25809]
[1610210026279,27.0,1212.3,1212.2,104.40189]
[1610210027280,27.0,1212.3,1212.2,100.3923]
[1610210027882,31.00959,1212.3,1212.2,100.3923]
[1610210028083,31.00959,1212.3,1212.2,101.6503165]
[1610210031685,31.00959,1212.3,1212.2,53.5065165]
[1610210032688,31.00959,1212.3,1212.2,103.0743165]
[1610210033286,27.0,1212.3,1212.2,103.0743165]
[1610210036189,31.00959,1212.3,1212.2,103.0743165]
[1610210036790,31.00959,1212.3,1212.2,53.5065165]
[1610210039296,31.00959,1212.3,1212.2,52.2485]
[1610210043300,31.00959,1212.3,1212.2,2.2485]
[1610210043500,31.00959,1212.3,1212.2,2.0033]
[1610210044703,31.00959,1212.3,1212.2,52.0033]
[1610210046804,31.00959,1212.3,1212.2,53.26143811]
[1610210053512,31.00959,1212.3,1212.2,60.00253811]
[1610210055515,31.00959,1212.3,1212.2,53.26143811]
[1610210059118,61.00959,1212.3,1212.2,3.26143811]
[1610210059518,61.00959,1212.3,1212.2,1.25813811]
[1610210060920,61.00959,1212.3,1211.7,2.5638]
[1610210061118,61.00959,1212.3,1211.4,111.2116]
[1610210061518,61.00959,1212.3,1211.6,50.0]
[1610210061718,61.00959,1212.3,1211.6,52.0464]
[1610210061920,31.00959,1212.3,1211.6,52.0464]
[1610210062122,31.00959,1212.3,1211.6,2.0464]
[1610210062322,4.00959,1211.7,1211.6,2.0464]
[1610210062922,4.00959,1211.7,1211.6,52.0464]
[1610210063725,4.00959,1211.7,1211.6,53.30475417]
[1610210069432,4.00959,1211.7,1211.6,3.30475417]
[1610210070035,4.00959,1211.7,1211.6,53.30475417]
[1610210074937,27.0,1212.3,1211.6,53.30475417]
[1610210075340,27.0,1212.3,1211.7,50.0]
[1610210075539,27.0,1212.3,1211.8,6.7469]
[1610210076041,27.0,1212.3,1211.7,50.0]
[1610210076241,27.0,1212.3,1212.0,56.5607]
[1610210076444,4.00959,1212.1,1212.0,6.24379]
[1610210076642,4.00959,1212.1,1212.0,2.2342]
[1610210077043,27.0,1212.3,1212.1,47.4052]
[1610210077442,27.0,1212.3,1212.0,2.2342]
[1610210077842,27.0,1212.3,1212.2,1.25764911]
[1610210078443,27.0,1212.3,1212.2,5.26723911]
[1610210079644,27.0,1212.3,1212.2,55.26723911]
[1610210082645,27.0,1212.3,1212.2,51.25764911]
[1610210083045,27.0,1212.3,1212.2,55.26723911]
[1610210090558,27.0,1212.3,1212.2,51.25764911]
[1610210091157,31.00959,1212.3,1212.2,51.25764911]
[1610210095163,27.0,1212.3,1212.2,51.25764911]
[1610210098564,14.7131,1212.3,1212.2,51.25764911]
[1610210099364,5.2837,1212.3,1212.2,51.25764911]
[1610210100165,5.2837,1212.3,1212.2,103.49794911]
[1610210103571,5.2837,1212.3,1212.2,51.25764911]
[1610210105068,9.29329,1212.3,1212.2,51.25764911]
[1610210113479,5.2837,1212.3,1212.2,51.25764911]
[1610210115182,9.29329,1212.3,1212.2,55.26723911]
[1610210115782,9.29329,1212.3,1212.2,51.25764911]
[1610210117185,9.29329,1212.3,1212.2,100.91814911]
[1610210122894,5.2837,1212.3,1212.2,100.91814911]
[1610210124195,5.2837,1212.3,1212.2,51.25764911]
[1610210127202,9.29329,1212.3,1212.2,51.25764911]
[1610210129603,9.29329,1212.3,1212.2,1.25764911]
[1610210130103,9.29329,1212.3,1212.2,51.25764911]
[1610210131410,69.61809,1212.3,1212.2,51.25764911]
[1610210132413,69.61809,1212.3,1212.2,1.25764911]
[1610210132713,69.61809,1212.3,1212.1,50.0]
[1610210133314,99.61809,1212.3,1212.1,50.0]
[1610210134517,69.61809,1212.3,1212.1,50.0]
[1610210135217,30.0,1212.2,1212.1,50.0]
[1610210135418,30.0,1212.2,1211.4,50.0]
[1610210135818,30.0,1212.2,1211.5,50.0]
[1610210136019,30.0,1212.2,1211.4,50.0]
[1610210136520,30.0,1212.2,1211.3,50.0]
[1610210137018,30.0,1212.2,1211.4,50.0]
[1610210137218,66.9376,1212.3,1211.5,1.25843235]
[1610210137419,5.2837,1212.3,1211.5,1.25843235]
[1610210137818,5.2837,1212.3,1211.6,50.0]
[1610210138218,5.2837,1212.3,1211.7,50.0]
[1610210138619,5.2837,1212.3,1211.7,1.25819629]
[1610210138820,5.2837,1212.3,1211.8,50.0]
[1610210139224,4.00959,1211.9,1211.8,50.0]
[1610210140120,4.00959,1211.9,1211.6,50.0]
[1610210140520,4.00959,1211.9,1211.8,50.0]
[1610210140720,4.00959,1211.9,1211.5,2.141]
[1610210140920,4.00959,1211.9,1211.6,50.0]
[1610210141320,4.00959,1211.7,1211.5,2.141]
[1610210141720,4.00959,1211.7,1211.6,50.0]
[1610210142820,6.97710986,1211.7,1211.6,50.0]
[1610210144821,6.97710986,1211.7,1211.1,50.0]
[1610210145221,4.00959,1211.3,1211.1,50.0]
[1610210145421,4.00959,1211.3,1210.9,2.4585]
[1610210145620,4.00959,1211.3,1210.5,70.1878]
[1610210145821,4.00959,1211.3,1211.0,50.0]
[1610210146021,4.00959,1211.3,1211.0,51.7342]
[1610210146224,4.00959,1211.3,1211.0,1.7342]
[1610210146620,4.00959,1211.3,1211.1,50.0]
[1610210147020,4.00959,1211.3,1211.0,1.7342]
[1610210147224,11.5553,1212.3,1211.2,50.0]
[1610210147620,11.5553,1212.3,1211.0,55.836]
[1610210148023,11.5553,1212.3,1211.3,50.0]
[1610210148422,11.5553,1212.3,1211.3,1.9203]
[1610210148822,11.5553,1212.3,1211.4,50.0]
[1610210149023,11.5553,1212.3,1211.3,1.9203]
[1610210149024,11.5553,1212.3,1211.5,50.0]
[1610210149425,11.5553,1212.3,1211.3,1.9203]
[1610210149426,4.00959,1211.6,1211.4,50.0]
[1610210150024,4.00959,1211.6,1211.5,50.0]
[1610210152527,4.00959,1211.6,1211.4,50.0]
[1610210153727,4.00959,1211.6,1211.5,1.2582811]
[1610210154929,4.00959,1211.6,1211.4,50.0]
[1610210157730,4.00959,1211.6,1211.5,50.0]
[1610210158130,4.00959,1211.6,1211.4,50.0]
[1610210158530,4.00959,1211.6,1211.5,50.0]
[1610210158930,4.00959,1211.6,1211.4,50.0]
[1610210159331,4.00959,1211.6,1211.5,50.0]
[1610210159532,4.00959,1211.6,1211.3,1.9203]
[1610210159731,4.00959,1211.6,1211.1,62.9127]
[1610210159933,4.00959,1211.6,1211.5,50.0]
[1610210160133,4.00959,1211.6,1211.4,51.9586]
[1610210160732,4.00959,1211.6,1211.5,50.0]
[1610210161132,4.00959,1211.6,1211.4,50.0]
[1610210161632,4.00959,1211.6,1211.5,50.0]
[1610210162132,4.00959,1211.6,1211.3,50.0]
[1610210162733,4.00959,1211.6,1211.1,62.9127]
[1610210163534,4.00959,1211.2,1211.1,62.9127]
[1610210163735,4.00959,1211.2,1211.0,5.1392]
[1610210164135,2.1027,1212.2,1211.0,5.1392]
[1610210164335,5.2837,1212.3,1211.0,5.1392]
[1610210164536,5.2837,1212.3,1211.4,57.3375]
[1610210164739,5.2837,1212.3,1211.4,59.6179]
[1610210165139,5.2837,1212.3,1211.5,1.25781096]
[1610210165537,4.00959,1211.8,1211.5,5.26740096]
[1610210166537,4.00959,1211.8,1211.6,1.25766406]
[1610210168839,4.00959,1211.8,1211.5,4.00959]
[1610210169041,4.00959,1211.8,1211.5,61.59949]
[1610210169241,4.00959,1211.8,1211.7,51.25775704]
[1610210169439,4.00959,1211.8,1211.7,53.08085704]
[1610210170039,4.00959,1211.8,1211.7,3.08085704]
[1610210170439,4.00959,1211.8,1211.7,53.08085704]
[1610210181051,5.2837,1212.3,1211.7,53.08085704]
[1610210181652,4.00959,1212.1,1211.8,4.00959]
[1610210181852,4.00959,1212.1,1211.8,5.26726192]
[1610210182253,4.00959,1212.1,1211.8,55.26726192]
[1610210182654,4.00959,1212.1,1211.9,50.0]
[1610210183356,4.00959,1212.1,1212.0,50.0]
[1610210183556,4.00959,1212.1,1212.0,52.4219]
[1610210184859,4.00959,1212.1,1212.0,53.67969223]
[1610210185661,4.00959,1212.1,1212.0,3.67969223]
[1610210186161,4.00959,1212.1,1212.0,53.67969223]
[1610210202284,4.00959,1212.1,1212.0,3.67969223]
[1610210202684,54.11349,1212.1,1212.0,3.67969223]
[1610210203685,4.00959,1212.1,1212.0,3.67969223]
[1610210204487,4.00959,1212.1,1212.0,1.25779223]
[1610210204886,5.2837,1212.3,1212.0,1.25779223]
[1610210205087,8.7637,1212.2,1212.0,1.25779223]
[1610210205287,30.0,1212.2,1212.0,1.25779223]
[1610210205687,4.00959,1212.1,1212.0,1.25779223]
[1610210205888,56.8445,1212.0,1211.8,1.25828944]
[1610210206289,86.8445,1212.0,1211.8,1.25828944]
[1610210206886,89.3423,1212.0,1211.8,1.25828944]
[1610210207287,59.3423,1212.0,1211.7,1.25846423]
[1610210207488,89.3423,1212.0,1211.7,1.25846423]
[1610210207688,4.00959,1211.8,1211.7,1.25846423]
[1610210208187,34.00959,1211.8,1211.7,51.25846423]
[1610210208589,34.00959,1211.8,1211.7,1.25846423]
[1610210209289,4.00959,1211.8,1211.7,1.25846423]
[1610210209889,4.00959,1211.8,1211.2,51.25853959]
[1610210210090,4.00959,1211.8,1211.2,1.25853959]
[1610210210490,4.00959,1211.8,1211.3,50.0]
[1610210210892,4.00959,1211.8,1211.2,1.25853959]
[1610210211390,4.00959,1211.8,1211.4,1.25856505]
[1610210211789,4.00959,1211.5,1211.4,1.25856505]
[1610210212191,4.00959,1211.5,1211.4,51.25856505]
[1610210212991,7.00814682,1211.5,1211.4,50.0]
[1610210213391,7.00814682,1211.5,1211.3,50.0]
[1610210213791,7.00814682,1211.5,1211.2,50.0]
[1610210214092,7.00814682,1211.5,1211.3,50.0]
[1610210214492,4.00959,1211.5,1211.1,50.3306]
[1610210214793,4.00959,1211.5,1211.2,50.0]
[1610210215091,4.00959,1211.5,1211.1,100.3306]
[1610210215591,4.00959,1211.5,1211.2,50.0]
[1610210215791,4.00959,1211.3,1211.2,50.0]
[1610210215992,4.00959,1211.3,1211.1,50.3306]
[1610210216392,4.00959,1211.3,1211.1,100.3306]
[1610210216792,4.00959,1211.3,1211.1,50.3306]
[1610210216992,4.00959,1211.3,1211.2,50.0]
[1610210217192,4.00959,1211.3,1211.1,100.3306]
[1610210217592,4.00959,1211.3,1211.2,50.0]
[1610210217792,4.00959,1211.3,1211.1,100.3306]
[1610210218293,4.00959,1211.3,1211.1,50.3306]
[1610210218494,4.00959,1211.3,1211.0,50.0]
[1610210219293,4.00959,1211.3,1211.1,50.0]
[1610210219494,4.00959,1211.3,1210.9,50.0]
[1610210219693,4.00959,1211.0,1210.9,50.0]
[1610210219895,4.00959,1211.0,1210.8,55.7225]
[1610210220293,4.00959,1211.0,1210.9,50.0]
[1610210222597,2.4978,1212.0,1211.0,67.8597]
[1610210222793,12.2033,1212.2,1211.0,50.0]
[1610210222994,6.1837,1212.2,1211.0,50.0]
[1610210223195,6.1837,1212.2,1211.5,64.6362]
[1610210223794,4.00959,1211.6,1211.5,64.6362]
[1610210224596,4.00959,1211.6,1211.5,114.6362]
[1610210225198,7.8125,1212.3,1211.5,114.6362]
[1610210225396,5.2837,1212.3,1211.5,114.6362]
[1610210225599,5.2837,1212.3,1211.6,50.0]
[1610210225797,4.00959,1211.9,1211.6,56.34129]
[1610210226197,4.00959,1211.9,1211.7,50.0]
[1610210226997,4.00959,1211.9,1211.8,50.0]
[1610210227697,4.00959,1211.9,1211.8,4.00959]
[1610210227899,4.00959,1211.9,1211.8,66.55989]
[1610210228297,4.00959,1211.9,1211.8,116.55989]
[1610210229898,4.00959,1211.9,1211.8,112.5503]
[1610210230998,4.00959,1211.9,1211.8,50.0]
[1610210231599,4.00959,1211.9,1211.7,50.0]
[1610210232197,4.00959,1211.9,1211.8,50.0]
[1610210232598,4.00959,1211.9,1211.8,65.533]
[1610210233398,4.00959,1211.9,1211.8,115.533]
[1610210235700,4.00959,1212.1,1211.8,54.00959]
[1610210235907,4.00959,1212.1,1211.9,48.4208]
[1610210236102,5.2837,1212.3,1211.9,50.9974]
[1610210236300,5.2837,1212.3,1211.9,100.9974]
[1610210236900,5.2837,1212.3,1212.0,50.0]
[1610210237601,5.2837,1212.3,1212.1,50.0]
[1610210237802,5.2837,1212.3,1212.2,4.00959]
[1610210238003,5.2837,1212.3,1212.2,5.76529]
[1610210238807,5.2837,1212.3,1212.2,55.76529]
[1610210240509,5.2837,1212.3,1212.2,51.7557]
[1610210241711,9.29329,1212.3,1212.2,51.7557]
[1610210242509,9.29329,1212.3,1212.2,1.7557]
[1610210242709,9.29329,1212.3,1212.1,50.0]
[1610210242909,9.29329,1212.3,1212.2,50.0]
[1610210243309,9.29329,1212.3,1212.1,50.0]
[1610210243711,12.2874637,1212.3,1212.2,50.0]
[1610210244410,12.2874637,1212.3,1211.9,50.0]
[1610210244811,12.2874637,1212.3,1211.8,56.5925]
[1610210245011,12.2874637,1212.3,1212.0,50.0]
[1610210245211,9.29329,1212.3,1212.0,50.0]
[1610210245411,9.29329,1212.3,1211.9,1.8771]
[1610210245811,4.00959,1212.0,1211.9,1.8771]
[1610210249015,4.00959,1212.0,1211.9,51.8771]
[1610210251619,5.2837,1212.3,1211.9,51.8771]
[1610210251818,4.00959,1212.2,1212.0,50.0]
[1610210252217,4.00959,1212.2,1212.1,50.0]
[1610210252420,4.00959,1212.2,1212.0,50.0]
[1610210252718,4.00959,1212.2,1211.9,1.8771]
[1610210252919,4.00959,1212.2,1211.8,50.0]
[1610210253319,3.0051718,1212.1,1211.5,112.4427]
[1610210253520,33.0051718,1212.1,1211.5,62.4427]
[1610210253919,4.00959,1211.6,1211.5,62.4427]
[1610210254123,4.00959,1211.6,1211.3,52.0568]
[1610210254322,4.00959,1211.6,1210.8,58.8404]
[1610210255121,6.31259,1211.6,1210.8,58.8404]
[1610210255821,4.00959,1210.9,1210.8,58.8404]
[1610210257221,4.00959,1210.9,1210.8,108.8404]
[1610210257922,4.00959,1210.9,1210.8,110.09899417]
[1610210258222,4.00959,1210.9,1210.8,51.25859417]
[1610210261326,4.00959,1210.9,1210.8,50.0]
[1610210262227,4.00959,1210.9,1210.8,51.25861159]
[1610210270633,4.00959,1210.9,1210.8,53.34581159]
[1610210277237,4.00959,1210.9,1210.8,102.39951159]
[1610210278640,4.00959,1210.9,1210.8,53.34581159]
[1610210280041,4.00959,1210.9,1210.8,51.25861159]
[1610210285450,6.3669,1212.0,1210.9,47.6609]
[1610210285646,5.2837,1212.3,1210.9,47.6609]
[1610210286448,5.2837,1212.3,1211.0,1.25830938]
[1610210286848,5.2837,1212.3,1211.0,53.05990938]
[1610210287048,5.2837,1212.3,1211.1,50.0]
[1610210287449,5.2837,1212.3,1211.2,50.0]
[1610210287650,5.2837,1212.3,1211.4,9.1914]
[1610210288051,4.00959,1211.5,1211.4,10.9185]
[1610210288650,4.00959,1211.5,1211.4,60.9185]
[1610210289052,5.2837,1212.3,1211.4,60.9185]
[1610210289253,5.2837,1212.3,1211.4,12.17655023]
[1610210289451,5.2837,1212.3,1211.5,50.0]
[1610210289652,5.2837,1212.3,1211.6,53.7073]
[1610210289852,5.2837,1212.3,1211.6,103.7073]
[1610210290051,4.00959,1211.7,1211.4,2.98515023]
[1610210290452,4.00959,1211.7,1211.5,50.0]
[1610210290653,4.00959,1211.7,1211.6,101.5444]
[1610210292153,4.00959,1211.7,1211.6,102.80238813]
[1610210293754,4.00959,1211.7,1211.6,52.80238813]
[1610210293955,4.00959,1211.7,1211.6,1.25798813]
[1610210294357,4.00959,1211.7,1211.6,51.25798813]
[1610210295557,4.00959,1211.7,1211.6,50.0]
[1610210296160,4.00959,1211.7,1211.6,51.25806896]
[1610210296357,5.2837,1212.3,1211.7,66.1949]
[1610210296556,5.2837,1212.3,1211.7,67.8979]
[1610210297762,5.2837,1212.3,1211.8,1.2576345]
[1610210297963,5.2837,1212.3,1212.2,4.00959]
[1610210298163,5.2837,1212.3,1212.2,5.59889]
[1610210298963,5.2837,1212.3,1212.2,68.83079]
[1610210299164,5.2837,1212.3,1212.2,70.08828018]
[1610210299364,5.2837,1212.3,1212.2,120.08828018]
[1610210299864,5.2837,1212.3,1212.2,116.07869018]
[1610210300065,9.29329,1212.3,1212.2,120.08828018]
[1610210302270,9.29329,1212.3,1212.2,116.07869018]
[1610210304072,9.29329,1212.3,1212.2,120.08828018]
[1610210304873,9.29329,1212.3,1212.2,116.07869018]
[1610210305273,5.2837,1212.3,1212.2,116.07869018]
[1610210306175,5.2837,1212.3,1212.2,120.08828018]
[1610210308878,5.2837,1212.3,1212.2,116.07869018]
[1610210310178,5.2837,1212.3,1212.2,120.08828018]
[1610210311880,5.2837,1212.3,1212.2,116.07869018]
[1610210312282,9.29329,1212.3,1212.2,116.07869018]
[1610210315985,9.29329,1212.3,1212.2,52.84679018]
[1610210324296,9.29329,1212.3,1212.2,56.85638018]
[1610210324495,9.29329,1212.3,1212.2,52.84679018]
[1610210340818,9.29329,1212.3,1212.2,104.71479018]
[1610210343823,9.29329,1212.3,1212.2,52.84679018]
[1610210346528,9.29329,1212.3,1212.2,2.84679018]
[1610210347830,12.29298242,1212.3,1212.2,1.5893]
[1610210348030,12.29298242,1212.3,1212.0,50.0]
[1610210348430,4.00959,1212.1,1212.0,50.0]
[1610210350334,7.01078203,1212.1,1211.9,50.0]
[1610210351636,7.01078203,1212.1,1212.0,50.0]
[1610210351836,4.00959,1212.1,1212.0,50.0]
[1610210352638,4.00959,1212.1,1211.9,50.0]
[1610210353041,4.00959,1212.1,1211.8,50.0]
[1610210353240,4.00959,1212.1,1211.4,59.0487]
[1610210353438,4.00959,1212.1,1211.9,50.0]
[1610210353840,4.00959,1212.1,1211.5,50.0]
[1610210354239,4.00959,1212.1,1211.6,50.0]
[1610210354440,4.00959,1211.7,1211.5,50.0]
[1610210354639,34.00959,1211.7,1211.5,50.0]
[1610210354839,51.4947,1211.5,1211.0,1.8016]
[1610210355038,51.4947,1211.5,1211.0,50.0]
[1610210355539,81.4947,1211.5,1210.9,50.0]
[1610210355739,54.9468,1211.1,1210.9,50.0]
[1610210355940,2.3496,1211.4,1210.9,50.0]
[1610210356143,32.3496,1211.4,1210.9,50.0]
[1610210356640,4.00959,1211.0,1210.9,50.0]
[1610210356840,4.00959,1211.0,1210.4,2.5734]
[1610210357043,4.00959,1211.0,1210.2,50.0]
[1610210357044,62.1868,1210.4,1210.2,50.0]
[1610210357244,62.1868,1210.4,1209.9,50.0]
[1610210358444,4.00959,1210.0,1209.9,50.0]
[1610210358645,4.00959,1210.0,1209.5,101.9143]
[1610210358843,4.00959,1210.0,1209.5,50.0]
[1610210359044,4.00959,1210.0,1209.9,50.0]
[1610210359244,4.00959,1210.0,1209.7,1.7253]
[1610210359644,4.00959,1210.0,1209.8,50.0]
[1610210360044,4.00959,1210.0,1209.9,50.0]
[1610210360446,4.00959,1210.0,1209.7,1.7253]
[1610210360645,4.00959,1210.0,1209.9,50.0]
[1610210360945,4.00959,1210.0,1209.7,1.7253]
[1610210361645,4.00959,1210.0,1209.9,50.0]
[1610210362848,4.00959,1210.0,1209.7,1.7253]
[1610210363348,4.00959,1210.0,1209.9,50.0]
[1610210363752,4.00959,1210.0,1209.8,50.0]
[1610210364153,4.00959,1210.0,1209.9,50.0]
[1610210364753,3.99016584,1210.0,1209.8,50.0]
[1610210365253,3.99016584,1210.0,1209.9,50.0]
[1610210368459,64.68256584,1210.0,1209.9,50.0]
[1610210369362,3.99016584,1210.0,1209.9,50.0]
[1610210369561,3.99016584,1210.0,1209.7,51.7253]
[1610210369962,3.99016584,1210.0,1209.8,50.0]
[1610210370562,54.5689,1209.8,1209.7,1.7253]
[1610210370764,54.5689,1209.8,1209.4,2.0924]
[1610210371164,54.5689,1209.8,1209.5,50.0]
[1610210371563,54.5689,1209.8,1209.4,2.0924]
[1610210371966,3.99016584,1210.0,1209.4,2.0924]
[1610210372166,56.9097,1209.4,1209.1,1.7453]
[1610210372366,6.02486584,1210.0,1209.1,1.7453]
[1610210372565,4.00959,1209.2,1208.8,52.4905]
[1610210372965,4.00959,1209.2,1208.8,2.4905]
[1610210373367,4.00959,1209.2,1208.8,52.4905]
[1610210373368,67.9941,1209.0,1208.8,52.4905]
[1610210373766,4.00959,1209.2,1208.8,52.4905]
[1610210373967,4.00959,1209.2,1208.9,50.0]
[1610210374466,4.00959,1209.2,1209.0,50.0]
[1610210374871,4.00959,1209.2,1208.8,1.8003]
[1610210375068,4.00959,1209.2,1209.1,50.0]
[1610210380880,4.00959,1209.2,1208.9,108.9556]
[1610210381480,4.00959,1209.2,1208.9,58.9556]
[1610210382684,4.00959,1209.0,1208.9,58.9556]
[1610210383983,4.00959,1209.0,1208.9,108.9556]
[1610210384383,4.00959,1209.0,1208.9,58.9556]
[1610210384985,4.00959,1209.0,1208.9,108.9556]
[1610210386186,4.00959,1209.0,1208.9,50.0]
[1610210387186,4.00959,1209.0,1208.9,49.99151388]
[1610210387386,2.0347,1210.0,1208.9,49.99151388]